Workbook

Sheet 심의조서 총괄표
B1: 2020년도 제11회 예천군 보조금심의위원회 대상자선정 심의조서 총괄표
L2: (단위 : 천원)
B3: 부서명 | C3: 보 조 사 업 자 | D3: 보 조 사 업 명 | E3: 과목명 | F3: 사 업 내 용 | G3: 계 | H3: 보조금 | I3: 자부담 | J3: 1차 (해당부서) | K3: 2차 (예산부서) | L3: 3차 (위원회)
B4: 합계 | D4: 33건 | G4: =G5+G9+G28+G40 -> 653,488 | H4: =H5+H9+H28+H40 -> 337,778 | I4: 315,710 | J4: 337,778 | K4: 337,778 | L4: =K4 -> 337,778
B5: 환경관리과 소계 | D5: =SUBTOTAL(103,D6:D8)&"건" -> 3건 | G5: =SUM(G6:G8) -> 122,279.0 | H5: 51,778.0 | I5: 70,501.0 | J5: =H5 -> 51,778.0 | K5: =H5 -> 51,778.0 | L5: =K5 -> 51,778
B6: 환경관리과 | C6: 예천군 용문면 심** 외 3인 | D6: 전기자동차 민간보급사업 | E6: 민간자본사업보조 | F6: 7,000천원*3대 14,200천원*1대 | G6: 95,000.0 | H6: 35,200.0 | I6: 59,800.0 | J6: 35,200.0 | K6: =H6 -> 35,200.0 | L6: =K6 -> 35,200
B7: 환경관리과 | C7: 예천군 보문면 홍** | D7: 운행차 배출가스 저감사업 (배출가스 저감장치 부착) | E7: 민간자본사업보조 | F7: 3,724천원*1대 | G7: 4,189.0 | H7: 3,724.0 | I7: 465.0 | J7: 3,724.0 | K7: =H7 -> 3,724.0 | L7: =K7 -> 3,724
B8: 환경관리과 | C8: 예천군 감천면 김** 외 3인 | D8: 대형건축물 슬레이트 처리 지원사업 | E8: 민간자본사업보조 | F8: 5,000천원*1식*50% 2,618천원*1식*100% 9,990천원*1식*50% 5,482천원*1식*50% | G8: 23,090.0 | H8: 12,854.0 | I8: 10,236.0 | J8: 12,854.0 | K8: 12,854.0 | L8: 12,854
B9: 농정과 소계 | D9: =SUBTOTAL(103,D10:D27)&"건" -> 18건 | G9: =SUM(G10:G27) -> 405,171.7 | H9: =SUM(H10:H27) -> 213,511.0 | I9: =SUM(I10:I27) -> 191,660.7 | J9: =H9 -> 213,511.0 | K9: =H9 -> 213,511.0 | L9: =K9 -> 213,511
B10: 농정과 | C10: 용문면 금당실길 **-** | D10: 농업6차산업 활성화 대책지원사업 | E10: 민간경상사업보조 | F10: 3,000천원 * 1명 * 90% | G10: 3,000.0 | H10: 2,700.0 | I10: 300.0 | J10: 2,700.0 | K10: =J10 -> 2,700.0 | L10: =K10 -> 2,700
B11: 농정과 | C11: 예천읍 석정길 *** 왕** 외 9명 | D11: 중소형농업기계지원 | E11: 민간자본사업보조 | F11: 2,000천원*10대*50% | G11: 20,000.0 | H11: 10,000.0 | I11: 10,000.0 | J11: 10,000.0 | K11: =J11 -> 10,000.0 | L11: =K11 -> 10,000
B12: 농정과 | C12: 호명면 행복로 ***, ***동 ***호 박** | D12: 과수 FTA대응 대체과수 지원(관정개발) | E12: 민간자본사업보조 | F12: 8,000천원*1공*50% | G12: 8,000.0 | H12: 4,000.0 | I12: 4,000.0 | J12: 4,000.0 | K12: 4,000.0 | L12: 4,000
B13: 농정과 | C13: 호명면 행복로 ***, ***동 ***호 박** | D13: 과수 FTA대응 대체과수 지원(점적관수) | E13: 민간자본사업보조 | F13: 1천원*7,400㎡*50% | G13: 7,400.0 | H13: 3,700.0 | I13: 3,700.0 | J13: 3,700.0 | K13: 3,700.0 | L13: 3,700
B14: 농정과 | C14: 용궁면 송암로 ** 장** | D14: 과수 FTA대응 대체과수 지원(선별기) | E14: 민간자본사업보조 | F14: 2,000천원*6,000㎡*50%대 | G14: 2,000.0 | H14: 1,000.0 | I14: 1,000.0 | J14: 1,000.0 | K14: 1,000.0 | L14: 1,000
B15: 농정과 | C15: 은풍면 은풍준시길 ** 황** | D15: 과실 생력화기자재 지원(SS기) | E15: 민간자본사업보조 | F15: 20,000천원*1대*25% | G15: 20,000.0 | H15: 5,000.0 | I15: 15,000.0 | J15: 5,000.0 | K15: 5,000.0 | L15: 5,000
B16: 농정과 | C16: 예천읍 대심*길 ** 심** 외 44명 | D16: 과실 장기저장제 지원 | E16: 민간자본사업보조 | F16: 33천원*667㎡*50% | G16: 22,021.7 | H16: 11,001.0 | I16: 11,020.7 | J16: 11,001.0 | K16: 11,001.0 | L16: 11,001
B17: 농정과 | C17: 예천읍 대심*길 ** 안** 외 1명 | D17: 자두재배농가 경쟁력 제고(동력운반차) | E17: 민간자본사업보조 | F17: 3,400천원*2대*50% | G17: 6,800.0 | H17: 3,400.0 | I17: 3,400.0 | J17: 3,400.0 | K17: 3,400.0 | L17: 3,400
B18: 농정과 | C18: 감천면 한천사길 ** 곽** 외 3명 | D18: 자두재배농가 경쟁력 제고(자두선별기) | E18: 민간자본사업보조 | F18: 5,000천원*4대*50% | G18: 20,000.0 | H18: 10,000.0 | I18: 10,000.0 | J18: 10,000.0 | K18: 10,000.0 | L18: 10,000
B19: 농정과 | C19: 예천읍 흑응로 ** 박** | D19: 자두재배농가 경쟁력 제고(전동가위) | E19: 민간자본사업보조 | F19: 1,600천원*1대*50% | G19: 1,600.0 | H19: 800.0 | I19: 800.0 | J19: 800.0 | K19: 800.0 | L19: 800
B20: 농정과 | C20: 은풍면 거록길 **-* 김** 외 1명 | D20: 과실생산비 절감 및 품질제고 지원 (신선도유지기) | E20: 민간자본사업보조 | F20: 2,000천원*2대*50% | G20: 4,000.0 | H20: 2,000.0 | I20: 2,000.0 | J20: 2,000.0 | K20: 2,000.0 | L20: 2,000
B21: 농정과 | C21: 지보면 매창길 *** 이** | D21: 화훼생산시설 경쟁력제고 지원 (탄산가스발생기) | E21: 민간자본사업보조 | F21: 1,500천원*10㎡*50% | G21: 1,500.0 | H21: 750.0 | I21: 750.0 | J21: 750.0 | K21: 750.0 | L21: 750
B22: 농정과 | C22: 개포면 신음리길 **-*** 최** | D22: 소득작목육성 지원(내재해형 하우스) | E22: 민간자본사업보조 | F22: 22,000원*660㎡*70% | G22: 14,520.0 | H22: 10,164.0 | I22: 4,356.0 | J22: 10,164.0 | K22: 10,164.0 | L22: 10,164
B23: 농정과 | C23: 유천면 고산길 ** 박** | D23: 고추비가림 재배시설 지원 | E23: 민간자본사업보조 | F23: 22,000원*990㎡*70% | G23: 21,780.0 | H23: 15,246.0 | I23: 6,534.0 | J23: 15,246.0 | K23: 15,246.0 | L23: 15,246
B24: 농정과 | C24: 예천읍 시장로 *** 김** | D24: 소득작목육성지원 (탄산가스발생기) | E24: 민간자본사업보조 | F24: 1,500천원*2대*50% | G24: 3,000.0 | H24: 1,500.0 | I24: 1,500.0 | J24: 1,500.0 | K24: 1,500.0 | L24: 1,500
B25: 농정과 | C25: 용문면 방두들길 ** 박** 외 15명 | D25: 소득작목육성지원 (이동식저온저장고) | E25: 민간자본사업보조 | F25: 500천원*10㎡*50% | G25: 80,000.0 | H25: 40,000.0 | I25: 40,000.0 | J25: 40,000.0 | K25: 40,000.0 | L25: 40,000
B26: 농정과 | C26: 대******* **지점 외 12농가 | D26: 우수 농특산물 포장재 지원사업 | E26: 민간자본사업보조 | F26: 2,500원*8,000매*50% 외 12건 | G26: 134,550.0 | H26: 67,250.0 | I26: 67,300.0 | J26: 67,250.0 | K26: 67,250.0 | L26: 67,250
B27: 농정과 | C27: ㈜**** 대표 노*수 | D27: 농산물 해외수출 홍보사업 지원 | E27: 민간경상사업보조 | F27: 25,000천원 * 1식 | G27: 35,000.0 | H27: 25,000.0 | I27: 10,000.0 | J27: 25,000.0 | K27: 25,000.0 | L27: 25,000
B28: 산림축산과 소계 | D28: 11건 | G28: =SUM(G29:G39) -> 112,037.0 | H28: =SUM(H29:H39) -> 58,488.5 | I28: 53,548.5 | J28: 58,488.5 | K28: 58,488.5 | L28: =K28 -> 58,489
B29: 산림축산과 | C29: 용문면 하학길 ** 박** | D29: 주거용 목재펠릿보일러 지원사업 | E29: 민간자본사업보조 (이전재원) | F29: 4,000천원*1식*70% | G29: 4,000.0 | H29: 2,800.0 | I29: 1,200.0 | J29: 2,800.0 | K29: =J29 -> 2,800.0 | L29: =K29 -> 2,800
B30: 산림축산과 | C30: 예천읍 시장로*** 김** 외 2명 | D30: 한우번식능력개선제지원 | E30: 민간자본사업보조 (이전재원) | F30: 30천원*10포*50% | G30: 300.0 | H30: 150.0 | I30: 150.0 | J30: 150.0 | K30: =J30 -> 150.0 | L30: =K30 -> 150
B31: 산림축산과 | C31: 감천면 현내*길 **-** 손** | D31: 쿨링패드및스프링클러지원 | E31: 민간자본사업보조 (이전재원) | F31: 10,000천원*1개소*50% | G31: 10,000.0 | H31: 5,000.0 | I31: 5,000.0 | J31: 5,000.0 | K31: 5,000.0 | L31: 5,000
B32: 산림축산과 | C32: 효자면 백석길 ** 김** 외 3명 | D32: 축사환기시설(송풍기)지원 | E32: 민간자본사업보조 (이전재원) | F32: 300천원*9대*50% | G32: 2,700.0 | H32: 1,350.0 | I32: 1,350.0 | J32: 1,350.0 | K32: 1,350.0 | L32: 1,350
B33: 산림축산과 | C33: 용궁면 대은길 **-** 권** | D33: 한우미네랄블럭지원 | E33: 민간자본사업보조 (이전재원) | F33: 10천원*5개*50% | G33: 50.0 | H33: 25.0 | I33: 25.0 | J33: 25.0 | K33: 25.0 | L33: 25
B34: 산림축산과 | C34: 풍양면 낙상*길 ***-* 정** | D34: 축사관리용CCTV 지원 | E34: 민간자본사업보조 (이전재원) | F34: 2,000천원*1대*50% | G34: 2,000.0 | H34: 1,000.0 | I34: 1,000.0 | J34: 1,000.0 | K34: 1,000.0 | L34: 1,000
B35: 산림축산과 | C35: 유천면 가동*길 **-* 강** 외 2명 | D35: 면역강화용사료첨가제 지원사업 | E35: 민간자본사업보조 (이전재원) | F35: 30천원*15포*50% | G35: 750.0 | H35: 375.0 | I35: 375.0 | J35: 375.0 | K35: 375.0 | L35: 375
B36: 산림축산과 | C36: 풍양면 낙상*길 **-** 안** 외 3명 | D36: 곤포사일리지제조비닐랩 지원사업 | E36: 민간자본사업보조 (이전재원) | F36: 1,320천원*25% | G36: 1,320.0 | H36: 330.0 | I36: 990.0 | J36: 330.0 | K36: 330.0 | L36: 330
B37: 산림축산과 | C37: 예천읍 한천길 ** 김** 외 23 | D37: 2020년 예천한우 브랜드 사업 (포장박스 및 포장재) | E37: 민간자본사업보조 (이전재원) | F37: 4천원 * 20,000매 | G37: 80,000.0 | H37: 40,000.0 | I37: 40,000.0 | J37: 40,000.0 | K37: 40,000.0 | L37: 40,000
B38: 산림축산과 | C38: 풍양면 풍지로 ***-*, 유** 외 5명 | D38: 한우 기생충 구제사업 | E38: 민간자본사업보조 | F38: 7천원*131두*50% | G38: 917.0 | H38: 458.5 | I38: 458.5 | J38: 458.5 | K38: 458.5 | L38: 459
B39: 산림축산과 | C39: 풍양면 수산못길 ***, 최** 외 1명 | D39: 축산농가 소독시설 지원사업 | E39: 민간자본사업보조 | F39: 5,000천원*2대*70% | G39: 10,000.0 | H39: 7,000.0 | I39: 3,000.0 | J39: 7,000.0 | K39: 7,000.0 | L39: 7,000
B40: 건축과 소계 | D40: =SUBTOTAL(103,D41:D51)&"건" -> 1건 | G40: =SUM(G41:G51) -> 14,000.0 | H40: =SUM(H41:H51) -> 14,000.0 | I40: =SUM(I41:I51) -> 0.0 | J40: =H40 -> 14,000.0 | K40: =J40 -> 14,000.0 | L40: =K40 -> 14,000
B41: 건축과 | C41: 예천군 풍양면 공덕길 ***, 박** 외 13명 | D41: 농촌빈집정비지원사업 | E41: 민간자본사업보조 | F41: 농촌빈집 철거를 통한 경관 및 환경개선 | G41: 14,000.0 | H41: 14,000.0 | I41: 0.0 | J41: 14,000.0 | K41: =J41 -> 14,000.0 | L41: =K41 -> 14,000

Sheet 대상자별지내역
B1: 2020년도 제11회 예천군 보조금심의위원회 대상자내역 별지 조서
M2: (단위 : 천원)
B3: 부서명 | C3: 보 조 사 업 자 | E3: 보 조 사 업 명 | F3: 과목명 | G3: 사 업 내 용 | H3: 계 | I3: 보조금 | J3: 자부담 | K3: 1차 (해당부서) | L3: 2차 (예산부서) | M3: 3차 (위원회)
C4: 주소 | D4: 성명
B5: 합계 | D5: 176명 | H5: =H6+H16+H120+H171 -> 653,488 | I5: =I6+I16+I120+I171 -> 337,778 | J5: 315,710 | K5: 337,778 | L5: 337,778 | M5: =L5 -> 337,778
B6: 환경관리과 소계 | D6: 9명 | H6: =SUM(H7:H15) -> 122,279 | I6: =SUM(I7:I15) -> 51,778 | J6: =SUM(J7:J15) -> 70,501 | K6: =I6 -> 51,778 | L6: =K6 -> 51,778 | M6: =L6 -> 51,778.0
B7: 환경관리과 | C7: 예천군 용문면 덕신길 ***-8 | D7: 심** | E7: 전기자동차 민간보급사업 | F7: 민간자본사업보조 | G7: 전기승용차 7,000천원*1대 | H7: 15,000 | I7: 7,000 | J7: 8,000 | K7: 7,000 | L7: =K7 -> 7,000 | M7: =L7 -> 7,000
B8: 환경관리과 | C8: 예천군 예천읍 대심*길 **-* | D8: 박** | E8: 전기자동차 민간보급사업 | F8: 민간자본사업보조 | G8: 전기승용차 7,000천원*1대 | H8: 15,000 | I8: 7,000 | J8: 8,000 | K8: 7,000 | L8: =K8 -> 7,000 | M8: =L8 -> 7,000
B9: 환경관리과 | C9: 예천군 호명면 검무로 **, ***동 ****호 | D9: 김** | E9: 전기자동차 민간보급사업 | F9: 민간자본사업보조 | G9: 전기승용차 14,200천원*1대 | H9: 50,000 | I9: 14,200 | J9: 35,800 | K9: 14,200 | L9: 14,200 | M9: 14,200
B10: 환경관리과 | C10: 예천군 호명면 양지로 **, ***동 ***호 | D10: 유** | E10: 전기자동차 민간보급사업 | F10: 민간자본사업보조 | G10: 전기승용차 7,000천원*1대 | H10: 15,000 | I10: 7,000 | J10: 8,000 | K10: 7,000 | L10: 7,000 | M10: 7,000
B11: 환경관리과 | C11: 예천군 보문면 오리골길 ** | D11: 홍** | E11: 운행차 배출가스 저감사업 (배출가스 저감장치 부착) | F11: 민간자본사업보조 | G11: 1종복합소형 3,724천원*1대 | H11: 4,189 | I11: 3,724 | J11: 465 | K11: 3,724 | L11: 3,724 | M11: 3,724
B12: 환경관리과 | C12: 예천군 감천면 덕율리 *** | D12: 김** | E12: 대형건축물 슬레이트 처리 지원사업 | F12: 민간자본사업보조 | G12: 5,000천원*1식*50% | H12: 5,000 | I12: 2,500 | J12: 2,500 | K12: 2,500 | L12: 2,500 | M12: 2,500
B13: 환경관리과 | C13: 예천군 지보면 만화리 산 ** | D13: *** **회 (이**) | E13: 대형건축물 슬레이트 처리 지원사업 | F13: 민간자본사업보조 | G13: 2,618천원*1식*100% | H13: 2,618 | I13: 2,618 | K13: 2,618 | L13: 2,618 | M13: 2,618
B14: 환경관리과 | C14: 예천군 풍양면 낙상리 ***-* | D14: 홍** | E14: 대형건축물 슬레이트 처리 지원사업 | F14: 민간자본사업보조 | G14: 9,990천원*1식*50% | H14: 9,990 | I14: 4,995 | J14: 4,995 | K14: 4,995 | L14: 4,995 | M14: 4,995
B15: 환경관리과 | C15: 예천군 풍양면 우망리 *** | D15: 정** | E15: 대형건축물 슬레이트 처리 지원사업 | F15: 민간자본사업보조 | G15: 5,482천원*1식*50% | H15: 5,482 | I15: 2,741 | J15: 2,741 | K15: 2,741 | L15: 2,741 | M15: 2,741
B16: 농정과 소계 | D16: 103명 | H16: =SUBTOTAL(9,H17:H119) -> 405,172 | I16: =SUBTOTAL(9,I17:I119) -> 213,511 | J16: =SUBTOTAL(9,J17:J119) -> 191,661 | K16: =I16 -> 213,511 | L16: =K16 -> 213,511 | M16: =L16 -> 213,511
B17: 농정과 | C17: 용문면 금당실길 **-** | D17: 이** | E17: 농업6차산업 활성화 대책지원사업 | F17: 민간경상사업보조 | G17: 농업6차산업 대책 컨설팅 지원 | H17: 3,000 | I17: 2,700 | J17: 300 | K17: 2,700 | L17: =K17 -> 2,700 | M17: =L17 -> 2,700
B18: 농정과 | C18: 예천읍 석정길 *** | D18: 왕** | E18: 중소형농업기계지원 | F18: 민간자본사업보조 | G18: 2,000천원*1식*50% | H18: 2,000 | I18: 1,000 | J18: 1,000 | K18: 1,000 | L18: =K18 -> 1,000 | M18: =L18 -> 1,000
B19: 농정과 | C19: 효자면 텃골길 ** | D19: 이** | E19: 중소형농업기계지원 | F19: 민간자본사업보조 | G19: 2,000천원*1식*50% | H19: 2,000 | I19: 1,000 | J19: 1,000 | K19: 1,000 | L19: 1,000 | M19: 1,000
B20: 농정과 | C20: 은풍면 어림성길 ***-* | D20: 정** | E20: 중소형농업기계지원 | F20: 민간자본사업보조 | G20: 2,000천원*1식*50% | H20: 2,000 | I20: 1,000 | J20: 1,000 | K20: 1,000 | L20: 1,000 | M20: 1,000
B21: 농정과 | C21: 유천면 고산길 **-** | D21: 신** | E21: 중소형농업기계지원 | F21: 민간자본사업보조 | G21: 2,000천원*1식*50% | H21: 2,000 | I21: 1,000 | J21: 1,000 | K21: 1,000 | L21: 1,000 | M21: 1,000
B22: 농정과 | C22: 유천면 성평길 **-* | D22: 이** | E22: 중소형농업기계지원 | F22: 민간자본사업보조 | G22: 2,000천원*1식*50% | H22: 2,000 | I22: 1,000 | J22: 1,000 | K22: 1,000 | L22: 1,000 | M22: 1,000
B23: 농정과 | C23: 유천면 수심*길 **-* | D23: 최** | E23: 중소형농업기계지원 | F23: 민간자본사업보조 | G23: 2,000천원*1식*50% | H23: 2,000 | I23: 1,000 | J23: 1,000 | K23: 1,000 | L23: 1,000 | M23: 1,000
B24: 농정과 | C24: 용궁면 용개로 ***-* | D24: 박** | E24: 중소형농업기계지원 | F24: 민간자본사업보조 | G24: 2,000천원*1식*50% | H24: 2,000 | I24: 1,000 | J24: 1,000 | K24: 1,000 | L24: 1,000 | M24: 1,000
B25: 농정과 | C25: 지보면 피아골길 ***-** | D25: 정** | E25: 중소형농업기계지원 | F25: 민간자본사업보조 | G25: 2,000천원*1식*50% | H25: 2,000 | I25: 1,000 | J25: 1,000 | K25: 1,000 | L25: 1,000 | M25: 1,000
B26: 농정과 | C26: 지보면 암천길 **-* | D26: 임** | E26: 중소형농업기계지원 | F26: 민간자본사업보조 | G26: 2,000천원*1식*50% | H26: 2,000 | I26: 1,000 | J26: 1,000 | K26: 1,000 | L26: 1,000 | M26: 1,000
B27: 농정과 | C27: 풍양면 와룡길 ** | D27: 박** | E27: 중소형농업기계지원 | F27: 민간자본사업보조 | G27: 2,000천원*1식*50% | H27: 2,000 | I27: 1,000 | J27: 1,000 | K27: 1,000 | L27: 1,000 | M27: 1,000
B28: 농정과 | C28: 호명면 행복로 ***, ***동 ***호 | D28: 박** | E28: 과수 FTA대응 대체과수 지원(관정개발) | F28: 민간자본사업보조 | G28: 8,000천원*1공*50% | H28: 8,000 | I28: 4,000 | J28: 4,000 | K28: 4,000 | L28: 4,000 | M28: 4,000
B29: 농정과 | C29: 호명면 행복로 ***, ***동 ***호 | D29: 박** | E29: 과수 FTA대응 대체과수 지원(점적관수) | F29: 민간자본사업보조 | G29: 1천원*7,400㎡*50% | H29: 7,400 | I29: 3,700 | J29: 3,700 | K29: 3,700 | L29: 3,700 | M29: 3,700
B30: 농정과 | C30: 용궁면 송암로 ** | D30: 장** | E30: 과수 FTA대응 대체과수 지원(선별기) | F30: 민간자본사업보조 | G30: 2,000천원*1대*50% | H30: 2,000 | I30: 1,000 | J30: 1,000 | K30: 1,000 | L30: 1,000 | M30: 1,000
B31: 농정과 | C31: 은풍면 은풍준시길 ** | D31: 황** | E31: 과실 생력화기자재 지원 | F31: 민간자본사업보조 | G31: 20,000천원*1대*25% | H31: 20,000 | I31: 5,000 | J31: 15,000 | K31: 5,000 | L31: 5,000 | M31: 5,000
B32: 농정과 | C32: 예천읍 대심*길 ** | D32: 심** | E32: 과실 장기저장제 지원 | F32: 민간자본사업보조 | G32: 33천원*10㎡*50% | H32: 330 | I32: 165 | J32: 165 | K32: 165 | L32: 165 | M32: 165
B33: 농정과 | C33: 예천읍 노상리길 ** | D33: 권** | E33: 과실 장기저장제 지원 | F33: 민간자본사업보조 | G33: 33천원*10㎡*50% | H33: 330 | I33: 165 | J33: 165 | K33: 165 | L33: 165 | M33: 165
B34: 농정과 | C34: 효자면 제촌길 ** | D34: 권** | E34: 과실 장기저장제 지원 | F34: 민간자본사업보조 | G34: 33천원*11㎡*50% | H34: 363 | I34: 181 | J34: 182 | K34: 181 | L34: 181 | M34: 181
B35: 농정과 | C35: 예천읍 노상리길 ** | D35: 권** | E35: 과실 장기저장제 지원 | F35: 민간자본사업보조 | G35: 33천원*16.5㎡*50% | H35: 545 | I35: 272 | J35: 273 | K35: 272 | L35: 272 | M35: 272
B36: 농정과 | C36: 은풍면 거록길 **-* | D36: 김** | E36: 과실 장기저장제 지원 | F36: 민간자본사업보조 | G36: 33천원*16.5㎡*50% | H36: 545 | I36: 272 | J36: 273 | K36: 272 | L36: 272 | M36: 272
B37: 농정과 | C37: 은풍면 은풍로 **-* | D37: 김** | E37: 과실 장기저장제 지원 | F37: 민간자본사업보조 | G37: 33천원*16.5㎡*50% | H37: 545 | I37: 272 | J37: 273 | K37: 272 | L37: 272 | M37: 272
B38: 농정과 | C38: 은풍면 은풍로 ** | D38: 김** | E38: 과실 장기저장제 지원 | F38: 민간자본사업보조 | G38: 33천원*16.5㎡*50% | H38: 545 | I38: 272 | J38: 273 | K38: 272 | L38: 272 | M38: 272
B39: 농정과 | C39: 예천읍 대심*길 **, ***호 | D39: 김** | E39: 과실 장기저장제 지원 | F39: 민간자본사업보조 | G39: 33천원*16.5㎡*50% | H39: 545 | I39: 272 | J39: 273 | K39: 272 | L39: 272 | M39: 272
B40: 농정과 | C40: 은풍면 과산골길 ** | D40: 김** | E40: 과실 장기저장제 지원 | F40: 민간자본사업보조 | G40: 33천원*8.25㎡*50% | H40: 272 | I40: 136 | J40: 136 | K40: 136 | L40: 136 | M40: 136
B41: 농정과 | C41: 은풍면 어림성길 ***-** | D41: 김** | E41: 과실 장기저장제 지원 | F41: 민간자본사업보조 | G41: 33천원*24.75㎡*50% | H41: 817 | I41: 408 | J41: 409 | K41: 408 | L41: 408 | M41: 408
B42: 농정과 | C42: 은풍면 은풍로 ***-** | D42: 남** | E42: 과실 장기저장제 지원 | F42: 민간자본사업보조 | G42: 33천원*18.15㎡*50% | H42: 599 | I42: 299 | J42: 300 | K42: 299 | L42: 299 | M42: 299
B43: 농정과 | C43: 은풍면 과산골길 ** | D43: 도** | E43: 과실 장기저장제 지원 | F43: 민간자본사업보조 | G43: 33천원*14.025㎡*50% | H43: 463 | I43: 231 | J43: 232 | K43: 231 | L43: 231 | M43: 231
B44: 농정과 | C44: 은풍면 한감길 **-* | D44: 박** | E44: 과실 장기저장제 지원 | F44: 민간자본사업보조 | G44: 33천원*8.25㎡*50% | H44: 272 | I44: 136 | J44: 136 | K44: 136 | L44: 136 | M44: 136
B45: 농정과 | C45: 은풍면 부용봉길 *** | D45: 박** | E45: 과실 장기저장제 지원 | F45: 민간자본사업보조 | G45: 33천원*19.8㎡*50% | H45: 653 | I45: 326 | J45: 327 | K45: 326 | L45: 326 | M45: 326
B46: 농정과 | C46: 은풍면 어림성길 ** | D46: 서** | E46: 과실 장기저장제 지원 | F46: 민간자본사업보조 | G46: 33천원*8.25㎡*50% | H46: 272 | I46: 136 | J46: 136 | K46: 136 | L46: 136 | M46: 136
B47: 농정과 | C47: 은풍면 한감길 ** | D47: 원** | E47: 과실 장기저장제 지원 | F47: 민간자본사업보조 | G47: 33천원*4.95㎡*50% | H47: 163 | I47: 81 | J47: 82 | K47: 81 | L47: 81 | M47: 81
B48: 농정과 | C48: 은풍면 부용봉길 ***-** | D48: 윤** | E48: 과실 장기저장제 지원 | F48: 민간자본사업보조 | G48: 33천원*31.35㎡*50% | H48: 1,035 | I48: 517 | J48: 518 | K48: 517 | L48: 517 | M48: 517
B49: 농정과 | C49: 은풍면 조고리길 *** | D49: 이** | E49: 과실 장기저장제 지원 | F49: 민간자본사업보조 | G49: 33천원*33㎡*50% | H49: 1,089 | I49: 544 | J49: 545 | K49: 544 | L49: 544 | M49: 544
B50: 농정과 | C50: 은풍면 율곡*길 *** | D50: 이** | E50: 과실 장기저장제 지원 | F50: 민간자본사업보조 | G50: 33천원*29.7㎡*50% | H50: 980 | I50: 490 | J50: 490 | K50: 490 | L50: 490 | M50: 490
B51: 농정과 | C51: 은풍면 과산골길 ** | D51: 이** | E51: 과실 장기저장제 지원 | F51: 민간자본사업보조 | G51: 33천원*16.5㎡*50% | H51: 545 | I51: 272 | J51: 273 | K51: 272 | L51: 272 | M51: 272
B52: 농정과 | C52: 은풍면 과산골길 * | D52: 이** | E52: 과실 장기저장제 지원 | F52: 민간자본사업보조 | G52: 33천원*8.25㎡*50% | H52: 272 | I52: 136 | J52: 136 | K52: 136 | L52: 136 | M52: 136
B53: 농정과 | C53: 은풍면 과산골길 ** | D53: 이** | E53: 과실 장기저장제 지원 | F53: 민간자본사업보조 | G53: 33천원*24.75㎡*50% | H53: 817 | I53: 408 | J53: 409 | K53: 408 | L53: 408 | M53: 408
B54: 농정과 | C54: 은풍면 은풍준시길 **-* | D54: 임** | E54: 과실 장기저장제 지원 | F54: 민간자본사업보조 | G54: 33천원*16.5㎡*50% | H54: 545 | I54: 272 | J54: 273 | K54: 272 | L54: 272 | M54: 272
B55: 농정과 | C55: 은풍면 거록길 **-** | D55: 정** | E55: 과실 장기저장제 지원 | F55: 민간자본사업보조 | G55: 33천원*4.95㎡*50% | H55: 163 | I55: 81 | J55: 82 | K55: 81 | L55: 81 | M55: 81
B56: 농정과 | C56: 은풍면 송월길 ** | D56: 진** | E56: 과실 장기저장제 지원 | F56: 민간자본사업보조 | G56: 33천원*16.5㎡*50% | H56: 545 | I56: 272 | J56: 273 | K56: 272 | L56: 272 | M56: 272
B57: 농정과 | C57: 은풍면 어림성길 *** | D57: 채** | E57: 과실 장기저장제 지원 | F57: 민간자본사업보조 | G57: 33천원*13.2㎡*50% | H57: 436 | I57: 217 | J57: 219 | K57: 217 | L57: 217 | M57: 217
B58: 농정과 | C58: 은풍면 한감길 ** | D58: 최** | E58: 과실 장기저장제 지원 | F58: 민간자본사업보조 | G58: 33천원*24.75㎡*50% | H58: 817 | I58: 408 | J58: 409 | K58: 408 | L58: 408 | M58: 408
B59: 농정과 | C59: 은풍면 은풍준시길 ** | D59: 한** | E59: 과실 장기저장제 지원 | F59: 민간자본사업보조 | G59: 33천원*24.75㎡*50% | H59: 817 | I59: 408 | J59: 409 | K59: 408 | L59: 408 | M59: 408
B60: 농정과 | C60: 은풍면 은풍준시길 **-** | D60: 황** | E60: 과실 장기저장제 지원 | F60: 민간자본사업보조 | G60: 33천원*4.95㎡*50% | H60: 163 | I60: 81 | J60: 82 | K60: 81 | L60: 81 | M60: 81
B61: 농정과 | C61: 은풍면 은풍로 ***-** | D61: 김** | E61: 과실 장기저장제 지원 | F61: 민간자본사업보조 | G61: 33천원*8.25㎡*50% | H61: 272 | I61: 136 | J61: 136 | K61: 136 | L61: 136 | M61: 136
B62: 농정과 | C62: 감천면 진물길 ** | D62: 장** | E62: 과실 장기저장제 지원 | F62: 민간자본사업보조 | G62: 33천원*22㎡*50% | H62: 726 | I62: 363 | J62: 363 | K62: 363 | L62: 363 | M62: 363
B63: 농정과 | C63: 감천면 현내*길 ** | D63: 유** | E63: 과실 장기저장제 지원 | F63: 민간자본사업보조 | G63: 33천원*22㎡*50% | H63: 726 | I63: 363 | J63: 363 | K63: 363 | L63: 363 | M63: 363
B64: 농정과 | C64: 감천면 도평길 **-** | D64: 김** | E64: 과실 장기저장제 지원 | F64: 민간자본사업보조 | G64: 33천원*6㎡*50% | H64: 198 | I64: 99 | J64: 99 | K64: 99 | L64: 99 | M64: 99
B65: 농정과 | C65: 감천면 벌방*길 ** | D65: 유**(**년) | E65: 과실 장기저장제 지원 | F65: 민간자본사업보조 | G65: 33천원*11㎡*50% | H65: 363 | I65: 182 | J65: 182 | K65: 182 | L65: 182 | M65: 182
B66: 농정과 | C66: 감천면 벌방*길 **-** | D66: 유** | E66: 과실 장기저장제 지원 | F66: 민간자본사업보조 | G66: 33천원*10㎡*50% | H66: 330 | I66: 165 | J66: 165 | K66: 165 | L66: 165 | M66: 165
B67: 농정과 | C67: 감천면 대맥리 *** | D67: 권** | E67: 과실 장기저장제 지원 | F67: 민간자본사업보조 | G67: 33천원*15㎡*50% | H67: 495 | I67: 247 | J67: 248 | K67: 247 | L67: 247 | M67: 247
B68: 농정과 | C68: 지보면 대죽길 *** | D68: 박** | E68: 과실 장기저장제 지원 | F68: 민간자본사업보조 | G68: 33천원*6㎡*50% | H68: 198 | I68: 99 | J68: 99 | K68: 99 | L68: 99 | M68: 99
B69: 농정과 | C69: 지보면 지풍로 *** | D69: 이** | E69: 과실 장기저장제 지원 | F69: 민간자본사업보조 | G69: 33천원*14㎡*50% | H69: 462 | I69: 231 | J69: 231 | K69: 231 | L69: 231 | M69: 231
B70: 농정과 | C70: 지보면 지보로 ***-** | D70: 정** | E70: 과실 장기저장제 지원 | F70: 민간자본사업보조 | G70: 33천원*24㎡*50% | H70: 792 | I70: 396 | J70: 396 | K70: 396 | L70: 396 | M70: 396
B71: 농정과 | C71: 지보면 지포길 ** | D71: 조** | E71: 과실 장기저장제 지원 | F71: 민간자본사업보조 | G71: 33천원*10㎡*50% | H71: 330 | I71: 165 | J71: 165 | K71: 165 | L71: 165 | M71: 165
B72: 농정과 | C72: 지보면 어신*길 **-** | D72: 이** | E72: 과실 장기저장제 지원 | F72: 민간자본사업보조 | G72: 33천원*6㎡*50% | H72: 198 | I72: 99 | J72: 99 | K72: 99 | L72: 99 | M72: 99
B73: 농정과 | C73: 지보면 지포길 ** | D73: 조** | E73: 과실 장기저장제 지원 | F73: 민간자본사업보조 | G73: 33천원*6㎡*50% | H73: 198 | I73: 99 | J73: 99 | K73: 99 | L73: 99 | M73: 99
B74: 농정과 | C74: 지보면 예지로 ***-* | D74: 김** | E74: 과실 장기저장제 지원 | F74: 민간자본사업보조 | G74: 33천원*10㎡*50% | H74: 330 | I74: 165 | J74: 165 | K74: 165 | L74: 165 | M74: 165
B75: 농정과 | C75: 지보면 도경길 ** | D75: 김** | E75: 과실 장기저장제 지원 | F75: 민간자본사업보조 | G75: 33천원*8㎡*50% | H75: 264 | I75: 132 | J75: 132 | K75: 132 | L75: 132 | M75: 132
B76: 농정과 | C76: 풍양면 괴당*길 **-* | D76: 이** | E76: 과실 장기저장제 지원 | F76: 민간자본사업보조 | G76: 33천원*20㎡*50% | H76: 660 | I76: 330 | J76: 330 | K76: 330 | L76: 330 | M76: 330
B77: 농정과 | C77: 예천읍 대심*길 ** | D77: 안** | E77: 자두재배농가 경쟁력 제고(동력운반차) | F77: 민간자본사업보조 | G77: 3,400천원*1대*50% | H77: 3,400 | I77: 1,700 | J77: 1,700 | K77: 1,700 | L77: 1,700 | M77: 1,700
B78: 농정과 | C78: 감천면 수용골길 ***-** | D78: 조** | E78: 자두재배농가 경쟁력 제고(동력운반차) | F78: 민간자본사업보조 | G78: 3,400천원*1대*50% | H78: 3,400 | I78: 1,700 | J78: 1,700 | K78: 1,700 | L78: 1,700 | M78: 1,700
B79: 농정과 | C79: 감천면 한천사길 ** | D79: 곽** | E79: 자두재배농가 경쟁력 제고(자두선별기) | F79: 민간자본사업보조 | G79: 5,000천원*1대*50% | H79: 5,000 | I79: 2,500 | J79: 2,500 | K79: 2,500 | L79: 2,500 | M79: 2,500
B80: 농정과 | C80: 감천면 벌방*길 ** | D80: 안** | E80: 자두재배농가 경쟁력 제고(자두선별기) | F80: 민간자본사업보조 | G80: 5,000천원*1대*50% | H80: 5,000 | I80: 2,500 | J80: 2,500 | K80: 2,500 | L80: 2,500 | M80: 2,500
B81: 농정과 | C81: 감천면 옥계천로 ** | D81: 김** | E81: 자두재배농가 경쟁력 제고(자두선별기) | F81: 민간자본사업보조 | G81: 5,000천원*1대*50% | H81: 5,000 | I81: 2,500 | J81: 2,500 | K81: 2,500 | L81: 2,500 | M81: 2,500
B82: 농정과 | C82: 감천면 한천사길 ** | D82: 조** | E82: 자두재배농가 경쟁력 제고(자두선별기) | F82: 민간자본사업보조 | G82: 5,000천원*1대*50% | H82: 5,000 | I82: 2,500 | J82: 2,500 | K82: 2,500 | L82: =K82 -> 2,500 | M82: =L82 -> 2,500
B83: 농정과 | C83: 예천읍 흑응로 ** | D83: 박** | E83: 자두재배농가 경쟁력 제고(전동가위) | F83: 민간자본사업보조 | G83: 1,600천원*1대*50% | H83: 1,600 | I83: 800 | J83: 800 | K83: 800 | L83: 800 | M83: 800
B84: 농정과 | C84: 은풍면 거록길 **-* | D84: 김** | E84: 과실생산비 절감 및 품질제고 지원(신선도유지기) | F84: 민간자본사업보조 | G84: 2,000천원*1대*50% | H84: 2,000 | I84: 1,000 | J84: 1,000 | K84: 1,000 | L84: 1,000 | M84: 1,000
B85: 농정과 | C85: 감천면 수용골길 *** | D85: 박** | E85: 과실생산비 절감 및 품질제고 지원(신선도유지기) | F85: 민간자본사업보조 | G85: 2,000천원*1대*50% | H85: 2,000 | I85: 1,000 | J85: 1,000 | K85: 1,000 | L85: 1,000 | M85: 1,000
B86: 농정과 | C86: 지보면 매창길 *** | D86: 이** | E86: 화훼생산시설 경쟁력제고 지원(탄산가스발생기) | F86: 민간자본사업보조 | G86: 1,500천원*10㎡*50% | H86: 1,500 | I86: 750 | J86: 750 | K86: 750 | L86: 750 | M86: 750
B87: 농정과 | C87: 개포면 신음리길 **-*** | D87: 최** | E87: 소득작목육성 지원(내재해형 하우스) | F87: 민간자본사업보조 | G87: 22,000원*660㎡*70% | H87: 14,520 | I87: 10,164 | J87: 4,356 | K87: 10,164 | L87: 10,164 | M87: 10,164
B88: 농정과 | C88: 유천면 고산길 ** | D88: 박** | E88: 고추비가림 재배시설 지원 | F88: 민간자본사업보조 | G88: 22,000원*990㎡*70% | H88: 21,780 | I88: 15,246 | J88: 6,534 | K88: 15,246 | L88: 15,246 | M88: 15,246
B89: 농정과 | C89: 예천읍 시장로 *** | D89: 김** | E89: 소득작목육성 지원 (탄산가스발생기) | F89: 민간자본사업보조 | G89: 1,500천원*2대*50% | H89: 3,000 | I89: 1,500 | J89: 1,500 | K89: 1,500 | L89: 1,500 | M89: 1,500
B90: 농정과 | C90: 용문면 방두들길 ** | D90: 박** | E90: 소득작목육성 지원 (이동식저온저장고) | F90: 민간자본사업보조 | G90: 500천원*10㎡*50% | H90: 5,000 | I90: 2,500 | J90: 2,500 | K90: 2,500 | L90: 2,500 | M90: 2,500
B91: 농정과 | C91: 효자면 도촌길 ** | D91: 김** | E91: 소득작목육성 지원 (이동식저온저장고) | F91: 민간자본사업보조 | G91: 500천원*10㎡*50% | H91: 5,000 | I91: 2,500 | J91: 2,500 | K91: 2,500 | L91: 2,500 | M91: 2,500
B92: 농정과 | C92: 은풍면 송월길 ** | D92: 김** | E92: 소득작목육성 지원 (이동식저온저장고) | F92: 민간자본사업보조 | G92: 500천원*10㎡*50% | H92: 5,000 | I92: 2,500 | J92: 2,500 | K92: 2,500 | L92: 2,500 | M92: 2,500
B93: 농정과 | C93: 은풍면 어림성길 *** | D93: 채** | E93: 소득작목육성 지원 (이동식저온저장고) | F93: 민간자본사업보조 | G93: 500천원*10㎡*50% | H93: 5,000 | I93: 2,500 | J93: 2,500 | K93: 2,500 | L93: 2,500 | M93: 2,500
B94: 농정과 | C94: 감천면 석송로 ***-** | D94: 홍** | E94: 소득작목육성 지원 (이동식저온저장고) | F94: 민간자본사업보조 | G94: 500천원*10㎡*50% | H94: 5,000 | I94: 2,500 | J94: 2,500 | K94: 2,500 | L94: 2,500 | M94: 2,500
B95: 농정과 | C95: 감천면 충효로 ****-** | D95: 곽** | E95: 소득작목육성 지원 (이동식저온저장고) | F95: 민간자본사업보조 | G95: 500천원*10㎡*50% | H95: 5,000 | I95: 2,500 | J95: 2,500 | K95: 2,500 | L95: 2,500 | M95: 2,500
B96: 농정과 | C96: 보문면 일방길 **-** | D96: 박** | E96: 소득작목육성 지원 (이동식저온저장고) | F96: 민간자본사업보조 | G96: 500천원*10㎡*50% | H96: 5,000 | I96: 2,500 | J96: 2,500 | K96: 2,500 | L96: 2,500 | M96: 2,500
B97: 농정과 | C97: 보문면 붉은재길 ** | D97: 권** | E97: 소득작목육성 지원 (이동식저온저장고) | F97: 민간자본사업보조 | G97: 500천원*10㎡*50% | H97: 5,000 | I97: 2,500 | J97: 2,500 | K97: 2,500 | L97: 2,500 | M97: 2,500
B98: 농정과 | C98: 호명면 백송길 ** | D98: 이** | E98: 소득작목육성 지원 (이동식저온저장고) | F98: 민간자본사업보조 | G98: 500천원*10㎡*50% | H98: 5,000 | I98: 2,500 | J98: 2,500 | K98: 2,500 | L98: 2,500 | M98: 2,500
B99: 농정과 | C99: 호명면 번개길 ***-* | D99: 김** | E99: 소득작목육성 지원 (이동식저온저장고) | F99: 민간자본사업보조 | G99: 500천원*10㎡*50% | H99: 5,000 | I99: 2,500 | J99: 2,500 | K99: 2,500 | L99: 2,500 | M99: 2,500
B100: 농정과 | C100: 유천면 광전*길 ***-* | D100: 정** | E100: 소득작목육성 지원 (이동식저온저장고) | F100: 민간자본사업보조 | G100: 500천원*10㎡*50% | H100: 5,000 | I100: 2,500 | J100: 2,500 | K100: 2,500 | L100: 2,500 | M100: 2,500
B101: 농정과 | C101: 용궁면 외무길 **-* | D101: 박** | E101: 소득작목육성 지원 (이동식저온저장고) | F101: 민간자본사업보조 | G101: 500천원*10㎡*50% | H101: 5,000 | I101: 2,500 | J101: 2,500 | K101: 2,500 | L101: 2,500 | M101: 2,500
B102: 농정과 | C102: 개포면 성조길 *-** | D102: 양** | E102: 소득작목육성 지원 (이동식저온저장고) | F102: 민간자본사업보조 | G102: 500천원*10㎡*50% | H102: 5,000 | I102: 2,500 | J102: 2,500 | K102: 2,500 | L102: 2,500 | M102: 2,500
B103: 농정과 | C103: 지보면 어신*길 *** | D103: 최** | E103: 소득작목육성 지원 (이동식저온저장고) | F103: 민간자본사업보조 | G103: 500천원*10㎡*50% | H103: 5,000 | I103: 2,500 | J103: 2,500 | K103: 2,500 | L103: 2,500 | M103: 2,500
B104: 농정과 | C104: 풍양면 영풍로 ***-** | D104: 윤** | E104: 소득작목육성 지원 (이동식저온저장고) | F104: 민간자본사업보조 | G104: 500천원*10㎡*50% | H104: 5,000 | I104: 2,500 | J104: 2,500 | K104: 2,500 | L104: 2,500 | M104: 2,500
B105: 농정과 | C105: 풍양면 효제길 ** | D105: 전** | E105: 소득작목육성 지원 (이동식저온저장고) | F105: 민간자본사업보조 | G105: 500천원*10㎡*50% | H105: 5,000 | I105: 2,500 | J105: 2,500 | K105: 2,500 | L105: 2,500 | M105: 2,500
B106: 농정과 | C106: 예천읍 시장로 *** | D106: ******협 **지점(이**) | E106: 우수 농특산물 포장재 지원사업 | F106: 민간자본사업보조 | G106: 2,500원*8,000매*50% | H106: 20,000 | I106: 10,000 | J106: 10,000 | K106: 10,000 | L106: 10,000 | M106: 10,000
B107: 농정과 | C107: 예천읍 효자로 ***-* | D107: ****(장**) | E107: 우수 농특산물 포장재 지원사업 | F107: 민간자본사업보조 | G107: 800원*2,500매*50% | H107: 2,000 | I107: 1,000 | J107: 1,000 | K107: 1,000 | L107: 1,000 | M107: 1,000
B108: 농정과 | C108: 예천읍 왕신리 ***-* | D108: 예천 왕신 ****반(전**) | E108: 우수 농특산물 포장재 지원사업 | F108: 민간자본사업보조 | G108: 1,500원*10,000매*50% | H108: 15,000 | I108: 7,500 | J108: 7,500 | K108: 7,500 | L108: 7,500 | M108: 7,500
B109: 농정과 | C109: 용문면 금당실길 ** | D109: ***(신**) | E109: 우수 농특산물 포장재 지원사업 | F109: 민간자본사업보조 | G109: 1,000원*6,000매*50% | H109: 6,000 | I109: 3,000 | J109: 3,000 | K109: 3,000 | L109: 3,000 | M109: 3,000
B110: 농정과 | C110: 용문면 하학길 **-* | D110: ******법인(윤**) | E110: 우수 농특산물 포장재 지원사업 | F110: 민간자본사업보조 | G110: 550원*91,000매*50% | H110: 50,050 | I110: 25,000 | J110: 25,050 | K110: 25,000 | L110: 25,000 | M110: 25,000
B111: 농정과 | C111: 은풍면 은풍로 **-* | D111: *******반(김**) | E111: 우수 농특산물 포장재 지원사업 | F111: 민간자본사업보조 | G111: 2,000원*3,000매*50% | H111: 6,000 | I111: 3,000 | J111: 3,000 | K111: 3,000 | L111: 3,000 | M111: 3,000
B112: 농정과 | C112: 예천군 감천면 관현*길 * | D112: 안** | E112: 우수 농특산물 포장재 지원사업 | F112: 민간자본사업보조 | G112: 1,000원*3,000매*50% | H112: 3,000 | I112: 1,500 | J112: 1,500 | K112: 1,500 | L112: 1,500 | M112: 1,500
B113: 농정과 | C113: 보문면 산성길 ***-** | D113: *****(안**) | E113: 우수 농특산물 포장재 지원사업 | F113: 민간자본사업보조 | G113: 2,000원*3,000매*50% | H113: 6,000 | I113: 3,000 | J113: 3,000 | K113: 3,000 | L113: 3,000 | M113: 3,000
B114: 농정과 | C114: 보문면 방점이길 ** | D114: *****(정**) | E114: 우수 농특산물 포장재 지원사업 | F114: 민간자본사업보조 | G114: 2,000원*2,500매*50% | H114: 5,000 | I114: 2,500 | J114: 2,500 | K114: 2,500 | L114: 2,500 | M114: 2,500
B115: 농정과 | C115: 지보면 지보로 ***-* | D115: ****(이**) | E115: 우수 농특산물 포장재 지원사업 | F115: 민간자본사업보조 | G115: 2,000원*2,750매*50% | H115: 5,500 | I115: 2,750 | J115: 2,750 | K115: 2,750 | L115: 2,750 | M115: 2,750
B116: 농정과 | C116: 지보면 지보리 *** | D116: *******반(어**) | E116: 우수 농특산물 포장재 지원사업 | F116: 민간자본사업보조 | G116: 2,000원*3,000매*50% | H116: 6,000 | I116: 3,000 | J116: 3,000 | K116: 3,000 | L116: 3,000 | M116: 3,000
B117: 농정과 | C117: 지보면 지풍로 *** | D117: ****법인 ***(정**) | E117: 우수 농특산물 포장재 지원사업 | F117: 민간자본사업보조 | G117: 1,000원*4,000매*50% | H117: 4,000 | I117: 2,000 | J117: 2,000 | K117: 2,000 | L117: 2,000 | M117: 2,000
B118: 농정과 | C118: 지보면 수월*길 *** | D118: **********법인(최**) | E118: 우수 농특산물 포장재 지원사업 | F118: 민간자본사업보조 | G118: 2,000원*3,000매*50% | H118: 6,000 | I118: 3,000 | J118: 3,000 | K118: 3,000 | L118: 3,000 | M118: 3,000
B119: 농정과 | C119: 대구광역시 동구 동대구로 ***(신천동 ***) | D119: 노** | E119: 농산물 해외수출 홍보 지원 사업 | F119: 민간경상사업보조 | G119: 25,000천원 * 1식 | H119: 35,000 | I119: 25,000 | J119: 10,000 | K119: 25,000 | L119: 25,000 | M119: 25,000
B120: 산림축산과 소계 | D120: 50명 | H120: =SUM(H121:H170) -> 112,037 | I120: =SUM(I121:I170) -> 58,489 | J120: 53,549 | K120: 58,489 | L120: =I120 -> 58,489 | M120: =L120 -> 58,489
B121: 산림축산과 | C121: 용문면 하학길 ** | D121: 박** | E121: 주거용 목재펠릿보일러 지원사업 | F121: 민간자본사업보조(이전재원) | G121: 4,000천원*1식*70% | H121: 4,000 | I121: 2,800 | J121: 1,200 | K121: 2,800 | L121: =K121 -> 2,800 | M121: =L121 -> 2,800
B122: 산림축산과 | C122: 예천읍 시장로 *** | D122: 김** | E122: 한우번식능력개선제 지원 | F122: 민간자본사업보조(자체재원) | G122: 30천원*6포*50% | H122: 180 | I122: 90 | J122: 90 | K122: 90 | L122: =K122 -> 90 | M122: =L122 -> 90
B123: 산림축산과 | C123: 용문면 복천길 **-** | D123: 변** | E123: 한우번식능력개선제 지원 | F123: 민간자본사업보조(자체재원) | G123: 30천원*1포*50% | H123: 30 | I123: 15 | J123: 15 | K123: 15 | L123: 15 | M123: =L123 -> 15
B124: 산림축산과 | C124: 감천면 장산마촌길 ***-** | D124: 김** | E124: 한우번식능력개선제 지원 | F124: 민간자본사업보조(자체재원) | G124: 30천원*3포*50% | H124: 90 | I124: 45 | J124: 45 | K124: 45 | L124: 45 | M124: 45
B125: 산림축산과 | C125: 감천면 현내*길 **-** | D125: 손** | E125: 쿨링패드및스프링클러지원 | F125: 민간자본사업보조(이전재원) | G125: 10,000천원*1개소*50% | H125: 10,000 | I125: 5,000 | J125: 5,000 | K125: 5,000 | L125: 5,000 | M125: 5,000
B126: 산림축산과 | C126: 효자면 백석길 ** | D126: 김** | E126: 축사환기시설(송풍기)지원 | F126: 민간자본사업보조(이전재원) | G126: 300천원*5대*50% | H126: 1,500 | I126: 750 | J126: 750 | K126: 750 | L126: 750 | M126: 750
B127: 산림축산과 | C127: 용궁면 해룡길 *** | D127: 조** | E127: 축사환기시설(송풍기)지원 | F127: 민간자본사업보조(이전재원) | G127: 300천원*2대*50% | H127: 600 | I127: 300 | J127: 300 | K127: 300 | L127: 300 | M127: 300
B128: 산림축산과 | C128: 지보면 마전*길 **-* | D128: 현** | E128: 축사환기시설(송풍기)지원 | F128: 민간자본사업보조(이전재원) | G128: 300천원*1대*50% | H128: 300 | I128: 150 | J128: 150 | K128: 150 | L128: 150 | M128: 150
B129: 산림축산과 | C129: 지보면 지보로 ***-** | D129: 이** | E129: 축사환기시설(송풍기)지원 | F129: 민간자본사업보조(이전재원) | G129: 300천원*1대*50% | H129: 300 | I129: 150 | J129: 150 | K129: 150 | L129: 150 | M129: 150
B130: 산림축산과 | C130: 용궁면 대은길 **-** | D130: 권** | E130: 한우미네랄블럭지원 | F130: 민간자본사업보조(이전재원) | G130: 10천원*5대*50% | H130: 50 | I130: 25 | J130: 25 | K130: 25 | L130: 25 | M130: 25
B131: 산림축산과 | C131: 풍양면 낙상*길 ***-* | D131: 정** | E131: 축사관리용CCTV 지원 | F131: 민간자본사업보조(이전재원) | G131: 2,000천원*1대*50% | H131: 2,000 | I131: 1,000 | J131: 1,000 | K131: 1,000 | L131: 1,000 | M131: 1,000
B132: 산림축산과 | C132: 유천면 가동*길 **-* | D132: 강** | E132: 면역강화용사료첨가제 지원사업 | F132: 민간자본사업보조(이전재원) | G132: 30천원*10포*50% | H132: 300 | I132: 150 | J132: 150 | K132: 150 | L132: 150 | M132: 150
B133: 산림축산과 | C133: 지보면 마전*길 ** | D133: 현** | E133: 면역강화용사료첨가제 지원사업 | F133: 민간자본사업보조(이전재원) | G133: 30천원*5포*50% | H133: 150 | I133: 75 | J133: 75 | K133: 75 | L133: 75 | M133: 75
B134: 산림축산과 | C134: 호명면 봉호로 ****-** | D134: 박** | E134: 면역강화용사료첨가제 지원사업 | F134: 민간자본사업보조(이전재원) | G134: 30천원*10포*50% | H134: 300 | I134: 150 | J134: 150 | K134: 150 | L134: 150 | M134: 150
B135: 산림축산과 | C135: 풍양면 낙상*길 **-** | D135: 안** | E135: 곤포사일리지제조비닐랩 지원사업 | F135: 민간자본사업보조(자체재원) | G135: 60천원*4포*25% | H135: 240 | I135: 60 | J135: 180 | K135: 60 | L135: 60 | M135: 60
B136: 산림축산과 | C136: 유천면 예성로 *** | D136: 강** | E136: 곤포사일리지제조비닐랩 지원사업 | F136: 민간자본사업보조(자체재원) | G136: 90천원*4포*25% | H136: 360 | I136: 90 | J136: 270 | K136: 90 | L136: 90 | M136: 90
B137: 산림축산과 | C137: 예천읍 중앙로 **, ***호 | D137: 배** | E137: 곤포사일리지제조비닐랩 지원사업 | F137: 민간자본사업보조(자체재원) | G137: 90천원*4포*25% | H137: 360 | I137: 90 | J137: 270 | K137: 90 | L137: 90 | M137: 90
B138: 산림축산과 | C138: 유천면 교동길 **-** | D138: 주** | E138: 곤포사일리지제조비닐랩 지원사업 | F138: 민간자본사업보조(자체재원) | G138: 90천원*4포*25% | H138: 360 | I138: 90 | J138: 270 | K138: 90 | L138: 90 | M138: 90
B139: 산림축산과 | C139: 예천읍 한천길 ** | D139: 김** | E139: 예천한우 브랜드 사업(포장박스 및 포장재) | F139: 민간자본사업보조(자체재원) | G139: 4천원*1,000매*50% | H139: 4,000 | I139: 2,000 | J139: 2,000 | K139: 2,000 | L139: 2,000 | M139: 2,000
B140: 산림축산과 | C140: 예천읍 시장로 **-* | D140: 장** | E140: 예천한우 브랜드 사업(포장박스 및 포장재) | F140: 민간자본사업보조(자체재원) | G140: 4천원*500매*50% | H140: 2,000 | I140: 1,000 | J140: 1,000 | K140: 1,000 | L140: 1,000 | M140: 1,000
B141: 산림축산과 | C141: 예천읍 시장로 *** | D141: 박** | E141: 예천한우 브랜드 사업(포장박스 및 포장재) | F141: 민간자본사업보조(자체재원) | G141: 4천원*1,000매*50% | H141: 4,000 | I141: 2,000 | J141: 2,000 | K141: 2,000 | L141: 2,000 | M141: 2,000
B142: 산림축산과 | C142: 예천읍 봉덕로 ** | D142: 박** | E142: 예천한우 브랜드 사업(포장박스 및 포장재) | F142: 민간자본사업보조(자체재원) | G142: 4천원*500매*50% | H142: 2,000 | I142: 1,000 | J142: 1,000 | K142: 1,000 | L142: 1,000 | M142: 1,000
B143: 산림축산과 | C143: 예천읍 시장로 *** | D143: 박** | E143: 예천한우 브랜드 사업(포장박스 및 포장재) | F143: 민간자본사업보조(자체재원) | G143: 4천원*500매*50% | H143: 2,000 | I143: 1,000 | J143: 1,000 | K143: 1,000 | L143: 1,000 | M143: 1,000
B144: 산림축산과 | C144: 예천읍 충효로 *** | D144: 성** | E144: 예천한우 브랜드 사업(포장박스 및 포장재) | F144: 민간자본사업보조(자체재원) | G144: 4천원*1,000매*50% | H144: 4,000 | I144: 2,000 | J144: 2,000 | K144: 2,000 | L144: 2,000 | M144: 2,000
B145: 산림축산과 | C145: 예천읍 시장로 ** | D145: 김** | E145: 예천한우 브랜드 사업(포장박스 및 포장재) | F145: 민간자본사업보조(자체재원) | G145: 4천원*1,600매*50% | H145: 6,400 | I145: 3,200 | J145: 3,200 | K145: 3,200 | L145: 3,200 | M145: 3,200
B146: 산림축산과 | C146: 예천읍 충효로 *** | D146: 김** | E146: 예천한우 브랜드 사업(포장박스 및 포장재) | F146: 민간자본사업보조(자체재원) | G146: 4천원*2,100매*50% | H146: 8,400 | I146: 4,200 | J146: 4,200 | K146: 4,200 | L146: 4,200 | M146: 4,200
B147: 산림축산과 | C147: 용문면 상금시장길 *-* | D147: 전** | E147: 예천한우 브랜드 사업(포장박스 및 포장재) | F147: 민간자본사업보조(자체재원) | G147: 4천원*1,000매*50% | H147: 4,000 | I147: 2,000 | J147: 2,000 | K147: 2,000 | L147: 2,000 | M147: 2,000
B148: 산림축산과 | C148: 용문면 상금시장길 *-* | D148: 장** | E148: 예천한우 브랜드 사업(포장박스 및 포장재) | F148: 민간자본사업보조(자체재원) | G148: 4천원*500매*50% | H148: 2,000 | I148: 1,000 | J148: 1,000 | K148: 1,000 | L148: 1,000 | M148: 1,000
B149: 산림축산과 | C149: 효자면 도효자로 **** | D149: 박** | E149: 예천한우 브랜드 사업(포장박스 및 포장재) | F149: 민간자본사업보조(자체재원) | G149: 4천원*500매*50% | H149: 2,000 | I149: 1,000 | J149: 1,000 | K149: 1,000 | L149: 1,000 | M149: 1,000
B150: 산림축산과 | C150: 감천면 포리 *길 ** | D150: 최** | E150: 예천한우 브랜드 사업(포장박스 및 포장재) | F150: 민간자본사업보조(자체재원) | G150: 4천원*500매*50% | H150: 2,000 | I150: 1,000 | J150: 1,000 | K150: 1,000 | L150: 1,000 | M150: 1,000
B151: 산림축산과 | C151: 호명면 양지*길 * | D151: 김** | E151: 예천한우 브랜드 사업(포장박스 및 포장재) | F151: 민간자본사업보조(자체재원) | G151: 4천원*500매*50% | H151: 2,000 | I151: 1,000 | J151: 1,000 | K151: 1,000 | L151: 1,000 | M151: 1,000
B152: 산림축산과 | C152: 호명면 검무로 ** 우방아이유쉘 상가 ***호 | D152: 유** | E152: 예천한우 브랜드 사업(포장박스 및 포장재) | F152: 민간자본사업보조(자체재원) | G152: 4천원*500매*50% | H152: 2,000 | I152: 1,000 | J152: 1,000 | K152: 1,000 | L152: 1,000 | M152: 1,000
B153: 산림축산과 | C153: 호명면 양지*길 ** | D153: 이** | E153: 예천한우 브랜드 사업(포장박스 및 포장재) | F153: 민간자본사업보조(자체재원) | G153: 4천원*500매*50% | H153: 2,000 | I153: 1,000 | J153: 1,000 | K153: 1,000 | L153: 1,000 | M153: 1,000
B154: 산림축산과 | C154: 호명면 새움*로 **, **.* 타워 ***~***호 | D154: 박** | E154: 예천한우 브랜드 사업(포장박스 및 포장재) | F154: 민간자본사업보조(자체재원) | G154: 4천원*500매*50% | H154: 2,000 | I154: 1,000 | J154: 1,000 | K154: 1,000 | L154: 1,000 | M154: 1,000
B155: 산림축산과 | C155: 용궁면 용궁로 *** | D155: 김** | E155: 예천한우 브랜드 사업(포장박스 및 포장재) | F155: 민간자본사업보조(자체재원) | G155: 4천원*1,600매*50% | H155: 6,400 | I155: 3,200 | J155: 3,200 | K155: 3,200 | L155: 3,200 | M155: 3,200
B156: 산림축산과 | C156: 용궁면 용궁로 *** | D156: 김** | E156: 예천한우 브랜드 사업(포장박스 및 포장재) | F156: 민간자본사업보조(자체재원) | G156: 4천원*500매*50% | H156: 2,000 | I156: 1,000 | J156: 1,000 | K156: 1,000 | L156: 1,000 | M156: 1,000
B157: 산림축산과 | C157: 용궁면 용궁로 *** | D157: 한** | E157: 예천한우 브랜드 사업(포장박스 및 포장재) | F157: 민간자본사업보조(자체재원) | G157: 4천원*500매*50% | H157: 2,000 | I157: 1,000 | J157: 1,000 | K157: 1,000 | L157: 1,000 | M157: 1,000
B158: 산림축산과 | C158: 지보면 지보로 *** | D158: **********법인 | E158: 예천한우 브랜드 사업(포장박스 및 포장재) | F158: 민간자본사업보조(자체재원) | G158: 4천원*1,600매*50% | H158: 6,400 | I158: 3,200 | J158: 3,200 | K158: 3,200 | L158: 3,200 | M158: 3,200
B159: 산림축산과 | C159: 지보면 지보로 ***-* | D159: 천** | E159: 예천한우 브랜드 사업(포장박스 및 포장재) | F159: 민간자본사업보조(자체재원) | G159: 4천원*1,600매*50% | H159: 6,400 | I159: 3,200 | J159: 3,200 | K159: 3,200 | L159: 3,200 | M159: 3,200
B160: 산림축산과 | C160: 풍양면 상풍로 **** | D160: 정** | E160: 예천한우 브랜드 사업(포장박스 및 포장재) | F160: 민간자본사업보조(자체재원) | G160: 4천원*500매*50% | H160: 2,000 | I160: 1,000 | J160: 1,000 | K160: 1,000 | L160: 1,000 | M160: 1,000
B161: 산림축산과 | C161: 풍양면 상풍로 **** | D161: 이** | E161: 예천한우 브랜드 사업(포장박스 및 포장재) | F161: 민간자본사업보조(자체재원) | G161: 4천원*500매*50% | H161: 2,000 | I161: 1,000 | J161: 1,000 | K161: 1,000 | L161: 1,000 | M161: 1,000
B162: 산림축산과 | C162: 풍양면 낙상*길 ** | D162: 김** | E162: 예천한우 브랜드 사업(포장박스 및 포장재) | F162: 민간자본사업보조(자체재원) | G162: 4천원*500매*50% | H162: 2,000 | I162: 1,000 | J162: 1,000 | K162: 1,000 | L162: 1,000 | M162: 1,000
B163: 산림축산과 | C163: 풍양면 풍지로 ***-* | D163: 유** | E163: 한우 기생충 구제사업 | F163: 민간자본사업보조 | G163: 7천원*25두*50% | H163: 175 | I163: 88 | J163: 88 | K163: 88 | L163: 88 | M163: 88
B164: 산림축산과 | C164: 풍양면 상풍로 **** | D164: 박** | E164: 한우 기생충 구제사업 | F164: 민간자본사업보조 | G164: 7천원*51두*50% | H164: 357 | I164: 179 | J164: 179 | K164: 179 | L164: 179 | M164: 179
B165: 산림축산과 | C165: 풍양면 흔전길 ** | D165: 정** | E165: 한우 기생충 구제사업 | F165: 민간자본사업보조 | G165: 7천원*20두*50% | H165: 140 | I165: 70 | J165: 70 | K165: 70 | L165: 70 | M165: 70
B166: 산림축산과 | C166: 풍양면 상풍로 **** | D166: 우** | E166: 한우 기생충 구제사업 | F166: 민간자본사업보조 | G166: 7천원*10두*50% | H166: 70 | I166: 35 | J166: 35 | K166: 35 | L166: 35 | M166: 35
B167: 산림축산과 | C167: 풍양면 풍지로 ***-** | D167: 유** | E167: 한우 기생충 구제사업 | F167: 민간자본사업보조 | G167: 7천원*10두*50% | H167: 70 | I167: 35 | J167: 35 | K167: 35 | L167: 35 | M167: 35
B168: 산림축산과 | C168: 풍양면 상풍로 ****-** | D168: 김** | E168: 한우 기생충 구제사업 | F168: 민간자본사업보조 | G168: 7천원*15두*50% | H168: 105 | I168: 53 | J168: 53 | K168: 53 | L168: 53 | M168: 53
B169: 산림축산과 | C169: 풍양면 수산못길 *** | D169: 최** | E169: 축산농가 소독시설 지원사업 | F169: 민간자본사업보조 | G169: 5,000천원*1대*70% | H169: 5,000 | I169: 3,500 | J169: 1,500 | K169: 3,500 | L169: 3,500 | M169: 3,500
B170: 산림축산과 | C170: 풍양면 구룡길 ** | D170: 전** | E170: 축산농가 소독시설 지원사업 | F170: 민간자본사업보조 | G170: 5,000천원*1대*70% | H170: 5,000 | I170: 3,500 | J170: 1,500 | K170: 3,500 | L170: 3,500 | M170: 3,500
B171: 건축과 소계 | D171: 14명 | H171: =SUM(H172:H229) -> 14,000 | I171: =SUM(I172:I229) -> 14,000 | J171: =SUM(J172:J229) -> 0 | K171: =SUM(K172:K229) -> 14,000 | L171: =I171 -> 14,000 | M171: =L171 -> 14,000
B172: 건축과 | C172: 예천군 풍양면 공덕길 *** | D172: 김** | E172: 농촌빈집정비지원사업 | F172: 민간자본사업보조 | G172: 1,000천원*1식 | H172: 1,000 | I172: 1,000 | K172: 1,000 | L172: =K172 -> 1,000 | M172: =L172 -> 1,000
B173: 건축과 | C173: 예천군 은풍면 부용봉길 ***-** | D173: 박** | E173: 농촌빈집정비지원사업 | F173: 민간자본사업보조 | G173: 1,000천원*1식 | H173: 1,000 | I173: 1,000 | K173: 1,000 | L173: =K173 -> 1,000 | M173: =L173 -> 1,000
B174: 건축과 | C174: 예천군 유천면 광전*길 **-* | D174: 홍** | E174: 농촌빈집정비지원사업 | F174: 민간자본사업보조 | G174: 1,000천원*1식 | H174: 1,000 | I174: 1,000 | K174: 1,000 | L174: 1,000 | M174: 1,000
B175: 건축과 | C175: 예천군 감천면 덕율리 *** | D175: 강** | E175: 농촌빈집정비지원사업 | F175: 민간자본사업보조 | G175: 1,000천원*1식 | H175: 1,000 | I175: 1,000 | K175: 1,000 | L175: 1,000 | M175: 1,000
B176: 건축과 | C176: 문경시 신흥*길 *-* | D176: 박** | E176: 농촌빈집정비지원사업 | F176: 민간자본사업보조 | G176: 1,000천원*1식 | H176: 1,000 | I176: 1,000 | K176: 1,000 | L176: 1,000 | M176: 1,000
B177: 건축과 | C177: 예천군 개포면 솔골길 ** | D177: 이** | E177: 농촌빈집정비지원사업 | F177: 민간자본사업보조 | G177: 1,000천원*1식 | H177: 1,000 | I177: 1,000 | K177: 1,000 | L177: 1,000 | M177: 1,000
B178: 건축과 | C178: 부산시 부산진구 시민공원로**번길** | D178: 김** | E178: 농촌빈집정비지원사업 | F178: 민간자본사업보조 | G178: 1,000천원*1식 | H178: 1,000 | I178: 1,000 | K178: 1,000 | L178: 1,000 | M178: 1,000
B179: 건축과 | C179: 예천군 감천면 복골길 **-* | D179: 김** | E179: 농촌빈집정비지원사업 | F179: 민간자본사업보조 | G179: 1,000천원*1식 | H179: 1,000 | I179: 1,000 | K179: 1,000 | L179: 1,000 | M179: 1,000
B180: 건축과 | C180: 경기도 화성시 병점*로 *** | D180: 강** | E180: 농촌빈집정비지원사업 | F180: 민간자본사업보조 | G180: 1,000천원*1식 | H180: 1,000 | I180: 1,000 | K180: 1,000 | L180: 1,000 | M180: 1,000
B181: 건축과 | C181: 예천군 용궁면 원당길 **-* | D181: 채** | E181: 농촌빈집정비지원사업 | F181: 민간자본사업보조 | G181: 1,000천원*1식 | H181: 1,000 | I181: 1,000 | K181: 1,000 | L181: 1,000 | M181: 1,000
B182: 건축과 | C182: 예천군 용궁면 용궁로 **-* | D182: 조** | E182: 농촌빈집정비지원사업 | F182: 민간자본사업보조 | G182: 1,000천원*1식 | H182: 1,000 | I182: 1,000 | K182: 1,000 | L182: 1,000 | M182: 1,000
B183: 건축과 | C183: 구미시 *공단로*길 **-** | D183: 안** | E183: 농촌빈집정비지원사업 | F183: 민간자본사업보조 | G183: 1,000천원*1식 | H183: 1,000 | I183: 1,000 | K183: 1,000 | L183: 1,000 | M183: 1,000
B184: 건축과 | C184: 서울시 강서구 강서로 **길 **-* | D184: 장** | E184: 농촌빈집정비지원사업 | F184: 민간자본사업보조 | G184: 1,000천원*1식 | H184: 1,000 | I184: 1,000 | K184: 1,000 | L184: 1,000 | M184: 1,000
B185: 건축과 | C185: 예천군 유천면 송전길 **-** | D185: 김** | E185: 농촌빈집정비지원사업 | F185: 민간자본사업보조 | G185: 1,000천원*1식 | H185: 1,000 | I185: 1,000 | K185: 1,000 | L185: 1,000 | M185: 1,000

Sheet Sheet1
